bitfinex-derivatives/quotes_BTCF0:USTF0_20250626
["timestamp","ask_amount","ask_price","bid_price","bid_amount"]
[1750978263033,0.2496858,107110.0,107100.0,1.31313596]
[1750978263432,0.4363313,107110.0,107100.0,1.34633596]
[1750978263936,0.2496858,107110.0,107100.0,1.73913596]
[1750978264236,0.21973555,107110.0,107100.0,1.8221796]
[1750978264435,0.21973555,107110.0,107100.0,1.83928955]
[1750978264630,0.1934,107110.0,107100.0,1.83928955]
[1750978264835,0.1618,107110.0,107100.0,1.83928955]
[1750978265026,0.1638,107110.0,107100.0,1.83928955]
[1750978265337,0.3504456,107110.0,107100.0,1.83928955]
[1750978265534,0.3823456,107110.0,107100.0,1.83928955]
[1750978265734,0.3853456,107110.0,107100.0,1.84028955]
[1750978266136,0.4156456,107110.0,107100.0,1.84028955]
[1750978266441,0.4156456,107110.0,107100.0,1.69833785]
[1750978268735,0.4156456,107110.0,107100.0,0.71381649]
[1750978268933,0.69804696,107110.0,107100.0,0.98034447]
[1750978269432,0.229,107110.0,107100.0,0.98034447]
[1750978269632,0.1987,107110.0,107100.0,1.62354583]
[1750978269843,0.3853456,107110.0,107100.0,1.68864583]
[1750978270440,0.4169456,107110.0,107100.0,1.40624447]
[1750978270642,0.4169456,107110.0,107100.0,1.69788259]
[1750978271530,0.4169456,107110.0,107100.0,1.66488259]
[1750978271736,0.005,107110.0,107100.0,1.66488259]
[1750978271944,0.005,107110.0,107100.0,1.72988259]
[1750978276147,0.005,107110.0,107100.0,1.44748123]
[1750978276446,0.2216455,107110.0,107100.0,0.64846123]
[1750978276643,0.2839455,107110.0,107100.0,0.98950123]
[1750978277444,0.2839455,107110.0,107100.0,1.27190259]
[1750978278145,0.2839455,107110.0,107100.0,0.57006259]
[1750978278340,0.2839455,107110.0,107100.0,1.27214259]
[1750978278545,0.0364,107110.0,107100.0,1.63326259]
[1750978278742,0.005,107110.0,107100.0,1.63326259]
[1750978278946,0.005,107110.0,107100.0,1.72986259]
[1750978284549,0.0306,107130.0,107120.0,0.1866281]
[1750978284753,0.1534,107130.0,107120.0,1.26629971]
[1750978284947,0.1534,107130.0,107120.0,1.29769971]
[1750978285349,0.1866,107130.0,107120.0,1.29769971]
[1750978286246,0.16,107130.0,107120.0,1.29769971]
[1750978286648,0.16,107130.0,107120.0,1.32859971]
[1750978287247,0.165,107130.0,107120.0,1.32959971]
[1750978288754,0.075,107130.0,107120.0,1.32959971]
[1750978288954,0.0418,107130.0,107120.0,1.32959971]
[1750978289343,0.0418,107130.0,107120.0,1.36219971]
[1750978289542,0.009,107130.0,107120.0,1.36219971]
[1750978290857,0.008,107130.0,107120.0,1.36219971]
[1750978291355,0.006,107130.0,107120.0,1.36219971]
[1750978296248,0.1926107,107130.0,107120.0,0.59645971]
[1750978296449,0.2254107,107130.0,107120.0,1.26749971]
[1750978296663,0.072,107130.0,107120.0,1.26749971]
[1750978297562,0.072,107130.0,107120.0,1.29779971]
[1750978300465,0.006,107130.0,107120.0,1.29779971]
[1750978300767,0.006,107130.0,107120.0,1.32949971]
[1750978301460,0.0367,107130.0,107120.0,1.32949971]
[1750978302463,0.0367,107130.0,107120.0,0.20425971]
[1750978302464,0.2544107,107130.0,107120.0,0.20425971]
[1750978302662,0.91761206,107130.0,107120.0,0.71995161]
[1750978302858,1.16761206,107130.0,107120.0,0.001]
[1750978303060,1.19445289,107130.0,107120.0,0.08366]
[1750978303258,0.94445297,107130.0,107120.0,0.65466]
[1750978303661,0.94445297,107130.0,107120.0,0.8412881]
[1750978304268,0.94445297,107130.0,107120.0,0.1866281]
[1750978304566,0.94445297,107130.0,107120.0,0.8904281]
[1750978305166,0.47544091,107130.0,107120.0,0.8904281]
[1750978305365,0.2744107,107130.0,107120.0,0.90724786]
[1750978321984,0.6352107,107130.0,107120.0,0.20344796]
[1750978322389,0.6352107,107130.0,107120.0,0.90628796]
[1750978332600,0.2744107,107130.0,107120.0,0.90628796]
[1750978332801,0.6352107,107130.0,107120.0,0.90628796]
[1750978338104,0.1866456,107110.0,107100.0,0.82438388]
[1750978338401,0.1866456,107110.0,107100.0,0.09076147]
[1750978338402,0.94984696,107110.0,107100.0,0.09076147]
[1750978338602,1.01364696,107110.0,107100.0,0.01710995]
[1750978338999,0.7312456,107110.0,107100.0,0.01710995]
[1750978339400,0.7312456,107110.0,107100.0,0.48617431]
[1750978339601,0.7312456,107110.0,107100.0,1.00251131]
[1750978339803,0.7312456,107110.0,107100.0,1.06541131]
[1750978340303,0.7312456,107110.0,107100.0,1.25207431]
[1750978340504,0.7312456,107110.0,107100.0,1.06541131]
[1750978340694,0.7312456,107110.0,107100.0,1.09811131]
[1750978341401,0.7312456,107110.0,107100.0,1.17281618]
[1750978342401,0.7312456,107110.0,107100.0,0.89041482]
[1750978344206,1.01364696,107110.0,107100.0,0.89041482]
[1750978347008,1.01364696,107110.0,107100.0,0.85771482]
[1750978348406,0.7312456,107110.0,107100.0,0.85771482]
[1750978350406,1.01364696,107110.0,107100.0,0.85771482]
[1750978351808,0.7312456,107110.0,107100.0,0.85771482]
[1750978352610,1.01364696,107110.0,107100.0,0.85771482]
[1750978353913,0.7312456,107110.0,107100.0,1.14011618]
[1750978354105,0.6998456,107110.0,107100.0,1.17091618]
[1750978354510,0.6674456,107110.0,107100.0,1.35757918]
[1750978356511,0.6674456,107110.0,107100.0,1.17091618]
[1750978357206,0.6674456,107110.0,107100.0,1.35757918]
[1750978358314,0.3066456,107110.0,107100.0,1.35757918]
[1750978364320,0.33403573,107110.0,107100.0,1.35757918]
[1750978370425,0.69483573,107110.0,107100.0,1.35757918]
[1750978370626,0.72613573,107110.0,107100.0,1.07517782]
[1750978372019,0.6987456,107110.0,107100.0,1.07517782]
[1750978373829,0.6987456,107110.0,107100.0,1.35757918]
[1750978375831,0.6987456,107110.0,107100.0,1.34046923]
[1750978376931,0.6987456,107110.0,107100.0,0.84060487]
[1750978377145,0.98114696,107110.0,107100.0,0.07470487]
[1750978377323,1.04344696,107110.0,107100.0,0.78378487]
[1750978377525,1.04344696,107110.0,107100.0,0.70908]
[1750978379136,0.7610456,107110.0,107100.0,0.70908]
[1750978379335,0.186663,107100.0,107090.0,0.20365808]
[1750978379531,0.660363,107100.0,107090.0,0.91224517]
[1750978380639,0.660363,107100.0,107090.0,0.91424517]
[1750978383042,0.660363,107100.0,107090.0,0.91524517]
[1750978383740,0.94276436,107100.0,107090.0,0.72871078]
[1750978385038,0.660363,107100.0,107090.0,0.72871078]
[1750978389843,0.660363,107100.0,107090.0,0.91539118]
[1750978390445,0.68780559,107100.0,107090.0,0.91539118]
[1750978395048,0.32700559,107100.0,107090.0,0.91539118]
[1750978395246,0.660363,107100.0,107090.0,0.91539118]
[1750978396544,0.660363,107100.0,107090.0,1.19779254]
[1750978398347,0.87223184,107100.0,107090.0,1.12726002]
[1750978400848,0.87223184,107100.0,107090.0,0.94057962]
[1750978401044,0.87223184,107100.0,107090.0,1.12726002]
[1750978404650,0.51143184,107100.0,107090.0,1.12726002]
[1750978404955,0.87223184,107100.0,107090.0,1.12726002]
[1750978408259,0.87223184,107100.0,107090.0,0.94057962]
[1750978408757,0.87223184,107100.0,107090.0,0.97097962]
[1750978409756,0.87223184,107100.0,107090.0,1.00387962]
[1750978412262,0.87223184,107100.0,107090.0,0.97347962]
[1750978412452,0.90313184,107100.0,107090.0,0.94057962]
[1750978412745,0.93056455,107100.0,107090.0,0.94057962]
[1750978414462,0.90313184,107100.0,107090.0,0.94057962]
[1750978417857,0.90313184,107100.0,107090.0,0.36705962]
[1750978418162,0.90313184,107100.0,107090.0,0.93773962]
[1750978420664,0.93056923,107100.0,107090.0,0.93773962]
[1750978420865,0.90313184,107100.0,107090.0,0.93773962]
[1750978425968,0.93056978,107100.0,107090.0,0.93773962]
[1750978427574,0.56976978,107100.0,107090.0,0.93773962]
[1750978427773,0.93056978,107100.0,107090.0,0.93773962]
[1750978428668,0.56976978,107100.0,107090.0,0.93773962]
[1750978428873,0.90313184,107100.0,107090.0,0.93773962]
[1750978429579,0.90313184,107100.0,107090.0,0.72587078]
[1750978429769,0.93057167,107100.0,107090.0,0.01999078]
[1750978429966,0.93057167,107100.0,107090.0,0.72311078]
[1750978431171,0.93057167,107100.0,107090.0,0.003]
[1750978432669,0.93975122,107100.0,107090.0,0.003]
[1750978434466,0.93975122,107100.0,107090.0,1e-07]
[1750978434670,0.1866804,107090.0,107080.0,4e-08]
[1750978434870,0.1866978,107080.0,107070.0,0.70515029]
[1750978435074,0.1866978,107080.0,107070.0,0.13259029]
[1750978435075,0.98416664,107080.0,107070.0,0.13259029]
[1750978437377,0.98416664,107080.0,107070.0,0.14659029]
[1750978437378,0.98516664,107080.0,107070.0,0.14659029]
[1750978440075,0.98716664,107080.0,107070.0,0.16559029]
[1750978440274,1.34796664,107080.0,107070.0,0.16559029]
[1750978441182,0.62636664,107080.0,107070.0,0.16559029]
[1750978441380,1.34796664,107080.0,107070.0,0.16559029]
[1750978442175,0.62636664,107080.0,107070.0,0.16559029]
[1750978442375,1.34796664,107080.0,107070.0,0.16559029]
[1750978450290,1.37559516,107080.0,107070.0,0.16559029]
[1750978450485,1.34796664,107080.0,107070.0,0.16559029]
[1750978450789,1.37559053,107080.0,107070.0,0.16559029]
[1750978454993,1.16372169,107080.0,107070.0,0.16559029]
[1750978455187,1.37559053,107080.0,107070.0,0.16559029]
[1750978459790,0.1867153,107070.0,107060.0,0.033]
[1750978460097,0.7720153,107070.0,107060.0,0.033]
[1750978460392,0.7720153,107070.0,107050.0,0.1964741]
[1750978460393,0.1867327,107060.0,107050.0,0.1964741]
[1750978460594,0.6675327,107060.0,107050.0,0.7682541]
[1750978460794,0.6675327,107060.0,107050.0,0.1969741]
[1750978460795,0.7294327,107060.0,107050.0,0.1969741]
[1750978461098,0.94130154,107060.0,107050.0,0.1343741]
[1750978461293,0.97390154,107060.0,107050.0,0.1343741]
[1750978462285,0.97390154,107060.0,107050.0,0.0020001]
[1750978462489,0.97390154,107060.0,107050.0,1e-07]
[1750978462690,1.55437314,107060.0,107050.0,1e-07]
[1750978462890,1.56137314,107060.0,107050.0,1e-07]
[1750978463595,1.58900713,107060.0,107050.0,1e-07]
[1750978464194,1.66311456,107060.0,107050.0,1e-07]
[1750978465388,1.79791456,107060.0,107050.0,1e-07]
[1750978466593,1.81191456,107060.0,107050.0,1e-07]
[1750978467497,0.1867676,107040.0,107030.0,0.0933]
[1750978467796,1.0283676,107040.0,107030.0,0.09292709]
[1750978468198,1.24023644,107040.0,107030.0,0.09292709]
[1750978469098,1.24323644,107040.0,107030.0,0.09392709]
[1750978469799,1.0313676,107040.0,107030.0,0.09392709]
[1750978470587,1.24323644,107040.0,107030.0,0.09392709]
[1750978472191,1.25023644,107040.0,107030.0,0.09392709]
[1750978478798,1.28273644,107040.0,107030.0,0.06392709]
[1750978478998,1.31363644,107040.0,107030.0,0.06392709]
[1750978480701,1.31363644,107040.0,107030.0,0.001]
[1750978481006,1.34503644,107040.0,107030.0,0.001]
[1750978481704,0.186785,107030.0,107020.0,0.06293436]
[1750978481904,0.751685,107030.0,107020.0,0.06293436]
[1750978482104,0.751685,107030.0,107020.0,0.19649436]
[1750978483010,0.76106028,107030.0,107020.0,0.19649436]
[1750978483202,0.76306028,107030.0,107020.0,0.19649436]
[1750978483611,0.76406028,107030.0,107020.0,0.19949436]
[1750978484218,0.754685,107030.0,107020.0,0.19949436]
[1750978485220,0.690585,107030.0,107020.0,0.19949436]
[1750978485414,0.690585,107030.0,107020.0,0.22999436]
[1750978488614,0.721785,107030.0,107020.0,0.22999436]
[1750978489321,0.721785,107030.0,107020.0,0.19949436]
[1750978489523,0.754085,107030.0,107020.0,0.16759436]
[1750978490022,0.78115135,107030.0,107020.0,0.16759436]
[1750978493526,0.78115135,107030.0,107020.0,0.13749436]
[1750978493728,0.78115135,107030.0,107020.0,0.00393436]
[1750978501929,0.42035135,107030.0,107020.0,0.00393436]
[1750978502136,1.14195135,107030.0,107020.0,0.00393436]
[1750978503935,0.42035135,107030.0,107020.0,0.00393436]
[1750978504139,1.14195135,107030.0,107020.0,0.00393436]
[1750978505933,1.10965135,107030.0,107020.0,0.06543436]
[1750978506140,1.07845135,107030.0,107020.0,0.09613436]
[1750978506344,1.29032019,107030.0,107020.0,0.3080032]
[1750978506547,1.07845135,107030.0,107020.0,0.09613436]
[1750978507436,1.07845135,107030.0,107020.0,0.06543436]
[1750978507637,1.11105135,107030.0,107020.0,0.06543436]
[1750978507838,1.14115135,107030.0,107020.0,0.06543436]
[1750978516944,1.07845135,107030.0,107020.0,0.25223686]
[1750978517140,1.051385,107030.0,107020.0,0.28283686]
[1750978517446,1.26325384,107030.0,107020.0,0.4947057]
[1750978517837,0.911385,107030.0,107020.0,1.0669857]
[1750978518944,1.12325384,107030.0,107020.0,1.0669857]
[1750978520345,0.911385,107030.0,107020.0,1.13795252]
[1750978520545,0.911385,107030.0,107020.0,0.85511686]
[1750978520947,0.550585,107030.0,107020.0,0.85511686]
[1750978522748,0.590585,107030.0,107020.0,0.85511686]
[1750978529051,0.590585,107030.0,107020.0,1.13795252]
[1750978529052,0.189785,107030.0,107020.0,1.13795252]
[1750978532956,0.189785,107030.0,107020.0,1.21591686]
[1750978533350,0.003,107030.0,107020.0,1.21591686]
[1750978533557,0.189785,107030.0,107020.0,1.21591686]
[1750978534858,0.003,107030.0,107020.0,1.21591686]
[1750978542756,0.003,107030.0,107020.0,1.42797525]
[1750978544159,0.003,107030.0,107020.0,2.26889525]
[1750978545659,0.1897851,107030.0,107020.0,2.26889525]
[1750978547564,0.1897851,107030.0,107020.0,1.90809525]
[1750978547863,0.1897851,107030.0,107020.0,2.62969525]
[1750978552455,0.003,107030.0,107020.0,2.62969525]
[1750978560460,0.189785,107030.0,107020.0,2.26889525]
[1750978560761,0.221285,107030.0,107020.0,2.26889525]
[1750978563059,0.0345,107030.0,107020.0,2.26889525]
[1750978563565,0.0345,107030.0,107020.0,1.90809525]
[1750978563763,0.0345,107030.0,107020.0,2.26889525]
[1750978565966,0.003,107030.0,107020.0,2.26889525]
[1750978569166,0.003,107030.0,107020.0,2.3991594]
[1750978570868,0.033,107040.0,107030.0,0.186785]
[1750978571072,0.2967508,107050.0,107040.0,0.20337879]
[1750978571373,0.2967508,107050.0,107040.0,1.13521879]
[1750978571570,0.2967508,107050.0,107040.0,1.34727718]
[1750978572270,0.2967508,107050.0,107040.0,1.37957718]
[1750978572666,0.2500633,107050.0,107040.0,1.37957718]
[1750978572869,0.2550633,107050.0,107040.0,1.38057718]
[1750978574670,0.0683,107050.0,107040.0,1.38057718]
[1750978575576,0.0683,107050.0,107040.0,1.41137718]
[1750978576679,0.0763,107050.0,107040.0,1.41137718]
[1750978579472,0.2630501,107050.0,107040.0,1.41137718]
[1750978580080,0.0763,107050.0,107040.0,1.41137718]
[1750978581883,0.0436,107050.0,107040.0,1.44327718]
[1750978582074,0.013,107050.0,107040.0,1.44327718]
[1750978582875,0.2518327,107060.0,107050.0,0.1867501]
[1750978583068,0.31108688,107060.0,107050.0,0.3197501]
[1750978583482,0.34338688,107060.0,107050.0,0.3197501]
[1750978583977,0.35338688,107060.0,107050.0,0.3197501]
[1750978584178,0.35738688,107060.0,107050.0,0.3207501]
[1750978584584,0.35738688,107060.0,107050.0,0.8928301]
[1750978585079,0.56944527,107060.0,107050.0,0.8928301]
[1750978585876,0.35738688,107060.0,107050.0,0.8928301]
[1750978586275,0.56944527,107060.0,107050.0,0.8928301]
[1750978586883,0.35738688,107060.0,107050.0,0.8928301]
[1750978587481,0.56944527,107060.0,107050.0,0.8928301]
[1750978588075,0.56944527,107060.0,107050.0,0.90199707]
[1750978589888,0.93024527,107060.0,107050.0,0.90199707]
[1750978590081,0.35738688,107060.0,107050.0,0.90199707]
[1750978591986,0.71818688,107060.0,107050.0,0.90199707]
[1750978592181,0.35738688,107060.0,107050.0,0.90199707]
[1750978592486,0.56944527,107060.0,107050.0,0.90199707]
[1750978593088,0.93024527,107060.0,107050.0,0.90199707]
[1750978598590,0.56944527,107060.0,107050.0,0.90199707]
[1750978598790,0.93024527,107060.0,107050.0,0.90199707]
[1750978598992,0.56944527,107060.0,107050.0,0.90199707]
[1750978602491,0.35738688,107060.0,107050.0,0.90199707]
[1750978606492,0.56944527,107060.0,107050.0,0.90199707]
[1750978607294,0.56944527,107060.0,107050.0,0.90139707]
[1750978608601,0.35738688,107060.0,107050.0,0.90139707]
[1750978609501,0.35738688,107060.0,107050.0,1.26219707]
[1750978609694,0.35738688,107060.0,107050.0,1.29399707]
[1750978610800,0.35738688,107060.0,107050.0,0.19691707]
[1750978610994,0.35738688,107060.0,107050.0,0.90131707]
[1750978611191,0.93024527,107060.0,107050.0,1.11337546]
[1750978620607,0.71818688,107060.0,107050.0,1.11337546]
[1750978620911,0.93024527,107060.0,107050.0,0.90131707]
[1750978622807,0.68588688,107060.0,107050.0,0.90131707]
[1750978623010,0.68588688,107060.0,107050.0,0.99991707]
[1750978626617,0.68588688,107060.0,107050.0,1.00111707]
[1750978626917,0.68588688,107060.0,107050.0,0.96821707]
[1750978627223,0.53714527,107060.0,107050.0,0.96821707]
[1750978627416,0.89794527,107060.0,107050.0,0.96821707]
[1750978627820,0.68588688,107060.0,107050.0,0.96821707]
[1750978628415,0.68588688,107060.0,107050.0,0.99971707]
[1750978631321,0.32508688,107060.0,107050.0,0.99971707]
[1750978631521,0.68588688,107060.0,107050.0,0.99971707]
[1750978635724,0.89794527,107060.0,107050.0,0.99971707]
[1750978636519,0.89794527,107060.0,107050.0,0.96821707]
[1750978640428,0.68588688,107060.0,107050.0,0.96821707]
[1750978640818,0.68588688,107060.0,107050.0,1.00121707]
[1750978643930,0.2007327,107060.0,107050.0,1.00121707]
[1750978648533,0.2007327,107060.0,107050.0,1.00173707]
[1750978648733,0.2655327,107060.0,107050.0,1.00173707]
[1750978656134,0.2655327,107060.0,107050.0,0.19691707]
[1750978656337,0.2655327,107060.0,107050.0,0.90275707]
[1750978656338,0.3064327,107060.0,107050.0,0.90275707]
[1750978656940,0.51849109,107060.0,107050.0,1.11481546]
[1750978657129,0.51849109,107060.0,107050.0,0.90275707]
[1750978657334,0.51849109,107060.0,107050.0,1.11481546]
[1750978658041,0.51849109,107060.0,107050.0,0.40897546]
[1750978658242,0.51849109,107060.0,107050.0,1.11477546]
[1750978658744,0.51849109,107060.0,107050.0,0.90271707]
[1750978659137,0.3064327,107060.0,107050.0,0.90271707]
[1750978659842,0.3064327,107060.0,107050.0,0.8935501]
[1750978660030,0.51849109,107060.0,107050.0,1.10560849]
[1750978660230,0.3064327,107060.0,107050.0,1.10560849]
[1750978660436,0.51849109,107060.0,107050.0,1.10560849]
[1750978663347,0.51849109,107060.0,107050.0,1.11478946]
[1750978666746,0.87929109,107060.0,107050.0,1.11478946]
[1750978667350,0.87929109,107060.0,107050.0,0.53372849]
[1750978667547,0.87929109,107060.0,107050.0,1.10540849]
[1750978667855,0.87929109,107060.0,107050.0,1.11470887]
[1750978668151,0.87929109,107060.0,107050.0,1.10540849]
[1750978668352,0.87929109,107060.0,107050.0,0.8933501]
[1750978669655,0.87929109,107060.0,107050.0,1.10540849]
[1750978671655,0.87929109,107060.0,107050.0,1.11453858]
[1750978672158,0.87929109,107060.0,107050.0,0.90248019]
[1750978674658,0.51849109,107060.0,107050.0,0.90248019]
[1750978674860,0.87929109,107060.0,107050.0,0.90248019]
[1750978680663,0.87929109,107060.0,107050.0,0.8933501]
[1750978681165,0.6672327,107060.0,107050.0,0.8933501]
[1750978681963,0.87929109,107060.0,107050.0,0.8933501]
[1750978682160,0.87929109,107060.0,107050.0,0.9241501]
[1750978682356,0.6363327,107060.0,107050.0,0.9568501]
[1750978684067,0.2755327,107060.0,107050.0,0.9568501]
[1750978684260,0.6363327,107060.0,107050.0,0.9568501]
[1750978685173,0.6363327,107060.0,107050.0,0.96621322]
[1750978685874,0.84839109,107060.0,107050.0,0.96621322]
[1750978687165,0.6363327,107060.0,107050.0,0.96621322]
[1750978687565,0.6363327,107060.0,107050.0,0.9568501]
[1750978688274,0.84839109,107060.0,107050.0,0.9568501]
[1750978692073,0.48759109,107060.0,107050.0,0.9568501]
[1750978692270,0.84839109,107060.0,107050.0,0.9568501]
[1750978695072,0.6363327,107060.0,107050.0,0.9568501]
[1750978695779,0.84839109,107060.0,107050.0,0.9568501]
[1750978696175,0.84839109,107060.0,107050.0,0.7701]
[1750978697272,0.84839109,107060.0,107050.0,0.9568501]
[1750978700282,0.84839109,107060.0,107050.0,0.7701]
[1750978700981,0.84839109,107060.0,107050.0,0.95685]
[1750978703782,0.6363327,107060.0,107050.0,0.95685]
[1750978704283,0.2755327,107060.0,107050.0,0.95685]
[1750978704485,0.84839109,107060.0,107050.0,0.95685]
[1750978705184,0.48759109,107060.0,107050.0,0.95685]
[1750978705482,0.84839109,107060.0,107050.0,0.95685]
[1750978706483,0.84839109,107060.0,107050.0,0.7701]
[1750978706678,0.84839109,107060.0,107050.0,0.001]
[1750978706877,0.88089109,107060.0,107050.0,0.57216]
[1750978707086,0.90804979,107060.0,107050.0,0.57216]
[1750978708089,0.90804979,107060.0,107050.0,0.001]
[1750978708477,0.1867676,107040.0,107030.0,0.90616]
[1750978708672,1.0383676,107040.0,107030.0,0.13312]
[1750978708878,1.1032676,107040.0,107030.0,0.70424]
[1750978709077,0.186785,107030.0,107020.0,0.00093436]
[1750978709278,0.774685,107030.0,107020.0,0.70517436]
[1750978709880,0.774685,107030.0,107020.0,0.00093436]
[1750978710276,0.776685,107030.0,107020.0,0.00993436]
[1750978711284,0.774685,107030.0,107020.0,0.00093436]
[1750978711588,0.777685,107030.0,107020.0,0.00193436]
[1750978711780,0.778685,107030.0,107020.0,0.00993436]
[1750978711982,0.8058074,107030.0,107020.0,0.00993436]
[1750978712481,0.8048074,107030.0,107020.0,0.00293436]
[1750978712681,0.8078074,107030.0,107020.0,0.00293436]
[1750978714283,0.81696856,107030.0,107020.0,0.00293436]
[1750978716278,0.780685,107030.0,107020.0,0.00293436]
[1750978718185,1.141485,107030.0,107020.0,0.00293436]
[1750978720394,1.044385,107030.0,107020.0,0.46619525]
[1750978722280,1.044385,107030.0,107020.0,0.25413686]
[1750978722482,1.044385,107030.0,107020.0,0.53695677]
[1750978722682,0.322785,107030.0,107020.0,1.31937686]
[1750978722888,0.192785,107030.0,107020.0,1.31937686]
[1750978723990,0.192785,107030.0,107020.0,1.60219677]
[1750978724482,0.192785,107030.0,107020.0,1.31937686]
[1750978726892,0.192785,107030.0,107020.0,1.60219677]
[1750978727288,0.192785,107030.0,107020.0,1.24139677]
[1750978727490,0.192785,107030.0,107020.0,1.60219677]
[1750978729893,0.192785,107030.0,107020.0,1.31937686]
[1750978731195,0.192785,107030.0,107020.0,1.60219677]
[1750978739607,0.192785,107030.0,107020.0,1.31937686]
[1750978740303,0.192785,107030.0,107020.0,0.95857686]
[1750978740504,0.192785,107030.0,107020.0,1.31937686]
[1750978742909,0.192785,107030.0,107020.0,0.95857686]
[1750978743408,0.192785,107030.0,107020.0,1.17068185]
[1750978743709,0.192785,107030.0,107020.0,0.59940185]
[1750978743912,0.192785,107030.0,107020.0,1.13746185]
[1750978744207,0.255985,107030.0,107020.0,1.13746185]
[1750978744406,0.46808999,107030.0,107020.0,1.13746185]
[1750978752503,0.255985,107030.0,107020.0,1.13746185]
[1750978760416,0.255985,107030.0,107020.0,1.17066185]
[1750978763724,0.255985,107030.0,107020.0,0.95855686]
[1750978764326,0.255985,107030.0,107020.0,1.17066185]
[1750978775732,0.255985,107030.0,107020.0,1.20246185]
[1750978778438,0.255985,107030.0,107020.0,0.99035686]
[1750978778634,0.255985,107030.0,107020.0,1.20246185]
[1750978787550,0.192785,107030.0,107020.0,1.10616185]
[1750978788752,0.192785,107030.0,107020.0,1.20096185]
[1750978793452,0.224285,107030.0,107020.0,1.20096185]
[1750978796254,0.68346229,107040.0,107030.0,0.21210499]
[1750978796456,1.02692549,107040.0,107030.0,0.39888999]
[1750978796650,1.07362119,107040.0,107030.0,0.39888999]
[1750978796958,1.07362119,107040.0,107030.0,0.186785]
[1750978797157,1.12025449,107040.0,107030.0,0.39888999]
[1750978797953,0.9121495,107040.0,107030.0,0.39988999]
[1750978798258,1.15426689,107040.0,107030.0,0.53372999]
[1750978799745,1.18466689,107040.0,107030.0,0.53372999]
[1750978800360,1.13797119,107040.0,107030.0,0.53372999]
[1750978800560,0.71745879,107040.0,107030.0,0.321625]
[1750978800858,0.71745879,107040.0,107030.0,0.382525]
[1750978801358,0.4282581,107040.0,107030.0,0.774325]
[1750978801559,0.3182581,107040.0,107030.0,0.774325]
[1750978802158,0.0381,107040.0,107030.0,0.774325]
[1750978803256,0.2248675,107040.0,107030.0,0.774325]
[1750978804161,0.0381,107040.0,107030.0,0.774325]
[1750978804959,0.2248675,107040.0,107030.0,0.774325]
[1750978809568,0.43697249,107040.0,107030.0,0.774325]
[1750978810664,0.2248675,107040.0,107030.0,0.774325]
[1750978810870,0.43697249,107040.0,107030.0,0.774325]
[1750978811566,0.2753675,107040.0,107030.0,0.413525]
[1750978811973,0.48747249,107040.0,107030.0,0.62562999]
[1750978813065,0.51937249,107040.0,107030.0,0.62562999]
[1750978813971,0.3072675,107040.0,107030.0,0.62562999]
[1750978814170,0.51937249,107040.0,107030.0,0.413525]
[1750978814370,0.51937249,107040.0,107030.0,0.62562999]
[1750978816471,0.51937249,107040.0,107030.0,0.413525]
[1750978820271,0.3072675,107040.0,107030.0,0.413525]
[1750978820471,0.51937249,107040.0,107030.0,0.413525]
[1750978820677,0.45697249,107040.0,107030.0,0.413525]
[1750978828482,0.81777249,107040.0,107030.0,0.188785]
[1750978828685,0.87907249,107040.0,107030.0,0.891745]
[1750978829085,0.87907249,107040.0,107030.0,1.10384999]
[1750978832788,0.87907249,107040.0,107030.0,0.891745]
[1750978833389,0.90610584,107040.0,107030.0,0.891745]
[1750978835788,0.69400085,107040.0,107030.0,0.891745]
[1750978836493,0.90610584,107040.0,107030.0,0.891745]
[1750978837390,0.90610584,107040.0,107030.0,0.923145]
[1750978839292,0.69400085,107040.0,107030.0,0.923145]
[1750978839491,0.3061675,107040.0,107030.0,0.923145]
[1750978840195,0.51827249,107040.0,107030.0,0.923145]
[1750978840590,0.87907249,107040.0,107030.0,0.923145]
[1750978841692,0.87907249,107040.0,107030.0,1.13524999]
[1750978844698,0.87907249,107040.0,107030.0,0.923145]
[1750978844902,0.87907249,107040.0,107030.0,1.13524999]
[1750978845501,0.87907249,107040.0,107030.0,1.10384999]
[1750978845994,0.87907249,107040.0,107030.0,1.10368999]
[1750978847496,0.87907249,107040.0,107030.0,0.002]
[1750978847696,0.90609098,107040.0,107030.0,0.13468]
[1750978847896,0.90609098,107040.0,107030.0,0.57216]
[1750978848092,0.90609098,107040.0,107030.0,0.002]
[1750978848403,0.186785,107030.0,107020.0,0.00093436]
[1750978848699,0.740285,107030.0,107020.0,0.57109436]
[1750978849402,0.740285,107030.0,107020.0,0.00093436]
[1750978849604,0.742285,107030.0,107020.0,0.57109436]
[1750978849815,0.743285,107030.0,107020.0,0.57209436]
[1750978851714,0.743285,107030.0,107020.0,0.57205436]
[1750978852213,0.743285,107030.0,107020.0,0.00193436]
[1750978855613,0.775485,107030.0,107020.0,0.00193436]
[1750978856121,0.78476496,107030.0,107020.0,0.00193436]
[1750978856521,0.775485,107030.0,107020.0,0.00193436]
[1750978858516,0.80241534,107030.0,107020.0,0.00193436]
[1750978859617,0.73981534,107030.0,107020.0,0.18873676]
[1750978859923,0.7398094,107030.0,107020.0,0.25463676]
[1750978860121,0.7398094,107030.0,107020.0,0.28773676]
[1750978860415,0.680585,107030.0,107020.0,0.28773676]
[1750978860614,0.89268999,107030.0,107020.0,0.49984175]
[1750978861016,0.89268999,107030.0,107020.0,0.28773676]
[1750978861822,0.89268999,107030.0,107020.0,0.49984175]
[1750978862025,0.680585,107030.0,107020.0,0.49984175]
[1750978870427,0.189785,107030.0,107020.0,0.49984175]
[1750978875121,0.189785,107030.0,107020.0,0.63236175]
[1750978875723,0.189785,107030.0,107020.0,0.42025676]
[1750978875724,0.40188999,107030.0,107020.0,0.42025676]
[1750978875925,0.40188999,107030.0,107020.0,0.63236175]
[1750978877827,0.189785,107030.0,107020.0,0.49984175]
[1750978878016,0.40188999,107030.0,107020.0,1.20556175]
[1750978879823,0.189785,107030.0,107020.0,1.20556175]
[1750978880323,0.40188999,107030.0,107020.0,1.20556175]
[1750978885836,0.40188999,107030.0,107020.0,0.49984175]
[1750978886134,0.40188999,107030.0,107020.0,1.20700175]
[1750978890632,0.003,107030.0,107020.0,1.56780175]
[1750978891138,0.1897849,107030.0,107020.0,1.56780175]
[1750978897237,0.003,107030.0,107020.0,1.56780175]
[1750978900038,0.3115442,107050.0,107040.0,0.1867675]
[1750978900341,0.4001442,107050.0,107040.0,1.2537275]
[1750978900541,0.4001442,107050.0,107040.0,1.56123249]
[1750978901342,0.4327442,107050.0,107040.0,1.3491275]
[1750978901638,0.4969442,107050.0,107040.0,1.3491275]
[1750978901833,0.4969442,107050.0,107040.0,1.56223249]
[1750978902030,0.71404919,107050.0,107040.0,1.56223249]
[1750978902243,0.71804919,107050.0,107040.0,1.56323249]
[1750978902746,0.71804919,107050.0,107040.0,1.57278042]
[1750978902942,0.71404919,107050.0,107040.0,1.57178042]